Department family,Entity,Date,Expense type,Expense area,Supplier,Transaction number,Amount
Department of Health,Leicestershire Partnership NHS Trust,02/01/20,Computer Software,Finance Department,VERSION 1,INVSOL004403,35825.70
Department of Health,Leicestershire Partnership NHS Trust,02/01/20,Rent,NSPCC Training Cente,NSPCC,118593,28752.40
Department of Health,Leicestershire Partnership NHS Trust,03/01/20,Insurance Costs,Chief Executives Office,NHS LITIGATION AUTHORITY,SICX400145,103464.70
Department of Health,Leicestershire Partnership NHS Trust,03/01/20,Occupational Health,HR Operations,UHL NHS TRUST (RWE),L0236827,26622.00
Department of Health,Leicestershire Partnership NHS Trust,03/01/20,Other Non-Medical Supplies & Services,Inter Unit I & E Distribution,UHL NHS TRUST (RWE),L0236830,176301.00
Department of Health,Leicestershire Partnership NHS Trust,03/01/20,Leased / Hired Vehicles,Autism,AUTOMOTIVE LEASING LTD,506241492,638.96
Department of Health,Leicestershire Partnership NHS Trust,03/01/20,Prep_ LT1y -Prepayments Lease Cars,Balance Sheet Collection,AUTOMOTIVE LEASING LTD,506241492,39225.07
Department of Health,Leicestershire Partnership NHS Trust,03/01/20,Trade_Drs_LT1y -Lease Cars Invoicing Contrl Ac.,Balance Sheet Collection,AUTOMOTIVE LEASING LTD,506241492,687.52
Department of Health,Leicestershire Partnership NHS Trust,03/01/20,Leased / Hired Vehicles,CHS IP Medical Cover,AUTOMOTIVE LEASING LTD,506241492,204.94
Department of Health,Leicestershire Partnership NHS Trust,03/01/20,Leased / Hired Vehicles,County 0-19 South Charnwood HV,AUTOMOTIVE LEASING LTD,506241492,5.00
Department of Health,Leicestershire Partnership NHS Trust,03/01/20,Leased / Hired Vehicles,Countywide Falls Service,AUTOMOTIVE LEASING LTD,506241492,435.02
Department of Health,Leicestershire Partnership NHS Trust,03/01/20,Leased / Hired Vehicles,Crisis Response and Home Treatment,AUTOMOTIVE LEASING LTD,506241492,5.00
Department of Health,Leicestershire Partnership NHS Trust,03/01/20,Leased / Hired Vehicles,"East Planned Care - Melton,Syston,Rut - Therapy",AUTOMOTIVE LEASING LTD,506241492,5.00
Department of Health,Leicestershire Partnership NHS Trust,03/01/20,Leased / Hired Vehicles,Forensic Services - Community,AUTOMOTIVE LEASING LTD,506241492,5.00
Department of Health,Leicestershire Partnership NHS Trust,03/01/20,Leased / Hired Vehicles,PIER Team - Early Intervention Services,AUTOMOTIVE LEASING LTD,506241492,5.00
Department of Health,Leicestershire Partnership NHS Trust,03/01/20,Leased / Hired Vehicles,School Age Immunisation and Vaccinations,AUTOMOTIVE LEASING LTD,506241492,703.36
Department of Health,Leicestershire Partnership NHS Trust,03/01/20,Leased / Hired Vehicles,Short Breaks - Specialist Nursing,AUTOMOTIVE LEASING LTD,506241492,5.00
Department of Health,Leicestershire Partnership NHS Trust,03/01/20,Leased / Hired Vehicles,Support Services (Learn Dis),AUTOMOTIVE LEASING LTD,506241492,187.06
Department of Health,Leicestershire Partnership NHS Trust,03/01/20,Leased / Hired Vehicles,West Leicestershire CMHT MHSOP,AUTOMOTIVE LEASING LTD,506241492,5.00
Department of Health,Leicestershire Partnership NHS Trust,03/01/20,Leased / Hired Vehicles,West Planned Care  - Charnwood Hub,AUTOMOTIVE LEASING LTD,506241492,100.18
Department of Health,Leicestershire Partnership NHS Trust,03/01/20,Leased / Hired Vehicles,West Planned Care  - Charnwood Hub - Therapy,AUTOMOTIVE LEASING LTD,506241492,5.00
Department of Health,Leicestershire Partnership NHS Trust,03/01/20,Leased / Hired Vehicles,West Planned Care  - Hinckley Hub,AUTOMOTIVE LEASING LTD,506241492,10.00
Department of Health,Leicestershire Partnership NHS Trust,03/01/20,Water & Sewerage Charges,"Bradgate Unit (including Glenvale day Unit) (P7, LPT)",WATER PLUS,0437002007/INV03162151,42184.29
Department of Health,Leicestershire Partnership NHS Trust,06/01/20,CHIEF EXECUTIVE'S REMUNERATION,Chief Executives Office,NORTHAMPTONSHIRE HC NHS FT (RP1),5147570,42386.14
Department of Health,Leicestershire Partnership NHS Trust,06/01/20,DIRECTOR,Chief Executives Office,NORTHAMPTONSHIRE HC NHS FT (RP1),5147646,29996.37
Department of Health,Leicestershire Partnership NHS Trust,06/01/20,Unitary Payment,"The Agnes Unit (AKA Assessment and Treatment Centre) (P85, LPT)",ARDEN PARTNERSHIP (LEICESTER),SI0039,116258.77
Department of Health,Leicestershire Partnership NHS Trust,07/01/20,NURSE - BAND 2 - AGENCY,Beechwood Ward,HCL NURSING,HNSI0000235,924.93
Department of Health,Leicestershire Partnership NHS Trust,07/01/20,NURSE - BAND 5 - AGENCY,Beechwood Ward,HCL NURSING,HNSI0000235,2557.64
Department of Health,Leicestershire Partnership NHS Trust,07/01/20,NURSE - BAND 3 - AGENCY,CHS Phlebotomy Service,HCL NURSING,HNSI0000235,207.63
Department of Health,Leicestershire Partnership NHS Trust,07/01/20,NURSE - BAND 5 - AGENCY,City Planned Care - East,HCL NURSING,HNSI0000235,17681.06
Department of Health,Leicestershire Partnership NHS Trust,07/01/20,NURSE - BAND 5 - AGENCY,City Planned Care - West,HCL NURSING,HNSI0000235,10204.85
Department of Health,Leicestershire Partnership NHS Trust,07/01/20,NURSE - BAND 5 - AGENCY,City Planned Care - West - Therapy,HCL NURSING,HNSI0000235,465.53
Department of Health,Leicestershire Partnership NHS Trust,07/01/20,Nurse - Band 6 -Agency,City West CMHT MHSOP,HCL NURSING,HNSI0000235,1069.88
Department of Health,Leicestershire Partnership NHS Trust,07/01/20,NURSE - BAND 2 - AGENCY,Clarendon Ward,HCL NURSING,HNSI0000235,168.41
Department of Health,Leicestershire Partnership NHS Trust,07/01/20,NURSE - BAND 5 - AGENCY,Clarendon Ward,HCL NURSING,HNSI0000235,964.48
Department of Health,Leicestershire Partnership NHS Trust,07/01/20,NURSE - BAND 2 - AGENCY,Coalville Snibston Ward,HCL NURSING,HNSI0000235,325.15
Department of Health,Leicestershire Partnership NHS Trust,07/01/20,NURSE - BAND 5 - AGENCY,Coalville Snibston Ward,HCL NURSING,HNSI0000235,1021.45
Department of Health,Leicestershire Partnership NHS Trust,07/01/20,NURSE - BAND 2 - AGENCY,Coalville Ward 2,HCL NURSING,HNSI0000235,710.11
Department of Health,Leicestershire Partnership NHS Trust,07/01/20,NURSE - BAND 5 - AGENCY,Coalville Ward 2,HCL NURSING,HNSI0000235,734.10
Department of Health,Leicestershire Partnership NHS Trust,07/01/20,NURSE - BAND 5 - AGENCY,Coleman Ward,HCL NURSING,HNSI0000235,302.58
Department of Health,Leicestershire Partnership NHS Trust,07/01/20,NURSE - BAND 5 - AGENCY,"East Planned Care - Oadby,Wigston & Harborough",HCL NURSING,HNSI0000235,5281.38
Department of Health,Leicestershire Partnership NHS Trust,07/01/20,NURSE - BAND 5 - AGENCY,"East Planned Care - Oadby,Wigston,Harb – Therapy",HCL NURSING,HNSI0000235,66.01
Department of Health,Leicestershire Partnership NHS Trust,07/01/20,NURSE - BAND 5 - AGENCY,Fielding Palmer Nursing,HCL NURSING,HNSI0000235,1764.66
Department of Health,Leicestershire Partnership NHS Trust,07/01/20,NURSE - BAND 2 - AGENCY,Gwendolen Ward,HCL NURSING,HNSI0000235,378.66
Department of Health,Leicestershire Partnership NHS Trust,07/01/20,NURSE - BAND 5 - AGENCY,Gwendolen Ward,HCL NURSING,HNSI0000235,2148.94
Department of Health,Leicestershire Partnership NHS Trust,07/01/20,NURSE - BAND 2 - AGENCY,H&B Comm Hosp East Ward,HCL NURSING,HNSI0000235,254.16
Department of Health,Leicestershire Partnership NHS Trust,07/01/20,NURSE - BAND 5 - AGENCY,H&B Comm Hosp East Ward,HCL NURSING,HNSI0000235,249.73
Department of Health,Leicestershire Partnership NHS Trust,07/01/20,NURSE - BAND 2 - AGENCY,H&B Comm Hosp North Ward,HCL NURSING,HNSI0000235,855.79
Department of Health,Leicestershire Partnership NHS Trust,07/01/20,NURSE - BAND 5 - AGENCY,H&B Comm Hosp North Ward,HCL NURSING,HNSI0000235,3082.70
Department of Health,Leicestershire Partnership NHS Trust,07/01/20,NURSE - BAND 2 - AGENCY,Kirby Ward,HCL NURSING,HNSI0000235,742.63
Department of Health,Leicestershire Partnership NHS Trust,07/01/20,NURSE - BAND 5 - AGENCY,Kirby Ward,HCL NURSING,HNSI0000235,326.24
Department of Health,Leicestershire Partnership NHS Trust,07/01/20,NURSE - BAND 2 - AGENCY,Lough Swithland Ward,HCL NURSING,HNSI0000235,332.79
Department of Health,Leicestershire Partnership NHS Trust,07/01/20,NURSE - BAND 5 - AGENCY,Lough Swithland Ward,HCL NURSING,HNSI0000235,965.23
Department of Health,Leicestershire Partnership NHS Trust,07/01/20,NURSE - BAND 5 - AGENCY,Rutland Ward Nursing,HCL NURSING,HNSI0000235,392.89
Department of Health,Leicestershire Partnership NHS Trust,07/01/20,NURSE - BAND 2 - AGENCY,St Lukes Ward 3,HCL NURSING,HNSI0000235,558.27
Department of Health,Leicestershire Partnership NHS Trust,07/01/20,NURSE - BAND 5 - AGENCY,St Lukes Ward 3,HCL NURSING,HNSI0000235,3163.17
Department of Health,Leicestershire Partnership NHS Trust,07/01/20,NURSE - BAND 5 - AGENCY,West Planned Care  - Hinckley Hub,HCL NURSING,HNSI0000235,172.94
Department of Health,Leicestershire Partnership NHS Trust,07/01/20,Payroll Deductions -Home Electronics 42 Jan 20,Balance Sheet Collection,SME HCI LTD,131436,45741.80
Department of Health,Leicestershire Partnership NHS Trust,07/01/20,Course / Training Expenses,Medical Director - Hq Report,UNIVERSITY OF LEICESTER,2230112588,165430.00
Department of Health,Leicestershire Partnership NHS Trust,07/01/20,HR / Payroll Services,HR Employment Services,LINCOLNSHIRE PART NHSFT(RP7),2000020261,29360.93
Department of Health,Leicestershire Partnership NHS Trust,08/01/20,External Data Processing / Storage,Records & information Governance,H COATES LTD/TA C&V DATA,0070434,28392.50
Department of Health,Leicestershire Partnership NHS Trust,08/01/20,Senior Manager - Band 8D,Digital Innovation Hub,NHS BIRM & SOL CCG,7031800392,33705.39
Department of Health,Leicestershire Partnership NHS Trust,08/01/20,WIP Project Not in BS - Buildings excl Dwellings,Work in Progress,INTERSERVE CONSTRUCTION LTD,VEM55182,213760.28
Department of Health,Leicestershire Partnership NHS Trust,08/01/20,Network Costs - WAN Maint,HIS Infrastructure,VIRGIN MEDIA BUSINESS,262421-163,43473.47
Department of Health,Leicestershire Partnership NHS Trust,08/01/20,Leased / Hired Vehicles,Adult County South Leicestershire CMHT,AUTOMOTIVE LEASING LTD,506114045,1178.80
Department of Health,Leicestershire Partnership NHS Trust,08/01/20,Leased / Hired Vehicles,Adult County- East Leicester CMHT,AUTOMOTIVE LEASING LTD,506114045,291.08
Department of Health,Leicestershire Partnership NHS Trust,08/01/20,Leased / Hired Vehicles,Autism,AUTOMOTIVE LEASING LTD,506114045,646.46
Department of Health,Leicestershire Partnership NHS Trust,08/01/20,Prep_ LT1y -Prepayments Lease Cars,Balance Sheet Collection,AUTOMOTIVE LEASING LTD,506114045,32709.11
Department of Health,Leicestershire Partnership NHS Trust,08/01/20,Trade_Drs_LT1y -Charitable  Funds Contra Account,Balance Sheet Collection,AUTOMOTIVE LEASING LTD,506114045,30.00
Department of Health,Leicestershire Partnership NHS Trust,08/01/20,Trade_Drs_LT1y -Lease Cars Invoicing Contrl Ac.,Balance Sheet Collection,AUTOMOTIVE LEASING LTD,506114045,1235.55
Department of Health,Leicestershire Partnership NHS Trust,08/01/20,Leased / Hired Vehicles,CAMHS Outpatients,AUTOMOTIVE LEASING LTD,506114045,15.00
Department of Health,Leicestershire Partnership NHS Trust,08/01/20,Leased / Hired Vehicles,CHS IP Medical Cover,AUTOMOTIVE LEASING LTD,506114045,64.11
Department of Health,Leicestershire Partnership NHS Trust,08/01/20,Leased / Hired Vehicles,Children’s Community Phlebotomy,AUTOMOTIVE LEASING LTD,506114045,5.00
Department of Health,Leicestershire Partnership NHS Trust,08/01/20,Leased / Hired Vehicles,City Planned Care - West - Therapy,AUTOMOTIVE LEASING LTD,506114045,5.00
Department of Health,Leicestershire Partnership NHS Trust,08/01/20,Leased / Hired Vehicles,City West CMHT MHSOP,AUTOMOTIVE LEASING LTD,506114045,5.00
Department of Health,Leicestershire Partnership NHS Trust,08/01/20,Leased / Hired Vehicles,Countywide Falls Service,AUTOMOTIVE LEASING LTD,506114045,664.08
Department of Health,Leicestershire Partnership NHS Trust,08/01/20,Leased / Hired Vehicles,Integrated Specialist Palliative Care Team,AUTOMOTIVE LEASING LTD,506114045,5.00
Department of Health,Leicestershire Partnership NHS Trust,08/01/20,Leased / Hired Vehicles,MHSOP Site Services,AUTOMOTIVE LEASING LTD,506114045,17.25
Department of Health,Leicestershire Partnership NHS Trust,08/01/20,Leased / Hired Vehicles,PIER Team - Early Intervention Services,AUTOMOTIVE LEASING LTD,506114045,5.00
Department of Health,Leicestershire Partnership NHS Trust,08/01/20,Leased / Hired Vehicles,Primary Ment Healthcare Worker,AUTOMOTIVE LEASING LTD,506114045,297.64
Department of Health,Leicestershire Partnership NHS Trust,08/01/20,Leased / Hired Vehicles,School Age Immunisation and Vaccinations,AUTOMOTIVE LEASING LTD,506114045,1223.36
Department of Health,Leicestershire Partnership NHS Trust,08/01/20,Leased / Hired Vehicles,Stewart House,AUTOMOTIVE LEASING LTD,506114045,334.87
Department of Health,Leicestershire Partnership NHS Trust,08/01/20,NURSE - BAND 2 - AGENCY,Beechwood Ward,HCL NURSING,HNSI0000230,168.41
Department of Health,Leicestershire Partnership NHS Trust,08/01/20,NURSE - BAND 5 - AGENCY,Beechwood Ward,HCL NURSING,HNSI0000230,895.18
Department of Health,Leicestershire Partnership NHS Trust,08/01/20,NURSE - BAND 3 - AGENCY,CHS Phlebotomy Service,HCL NURSING,HNSI0000230,234.14
Department of Health,Leicestershire Partnership NHS Trust,08/01/20,NURSE - BAND 5 - AGENCY,City Planned Care - East,HCL NURSING,HNSI0000230,18143.06
Department of Health,Leicestershire Partnership NHS Trust,08/01/20,NURSE - BAND 5 - AGENCY,City Planned Care - West,HCL NURSING,HNSI0000230,8068.41
Department of Health,Leicestershire Partnership NHS Trust,08/01/20,NURSE - BAND 5 - AGENCY,City Planned Care - West - Therapy,HCL NURSING,HNSI0000230,793.56
Department of Health,Leicestershire Partnership NHS Trust,08/01/20,Nurse - Band 6 -Agency,City West CMHT MHSOP,HCL NURSING,HNSI0000230,1069.88
Department of Health,Leicestershire Partnership NHS Trust,08/01/20,NURSE - BAND 2 - AGENCY,Clarendon Ward,HCL NURSING,HNSI0000230,984.42
Department of Health,Leicestershire Partnership NHS Trust,08/01/20,NURSE - BAND 5 - AGENCY,Clarendon Ward,HCL NURSING,HNSI0000230,781.96
Department of Health,Leicestershire Partnership NHS Trust,08/01/20,NURSE - BAND 2 - AGENCY,Coalville Snibston Ward,HCL NURSING,HNSI0000230,275.18
Department of Health,Leicestershire Partnership NHS Trust,08/01/20,NURSE - BAND 2 - AGENCY,Coalville Ward 2,HCL NURSING,HNSI0000230,106.77
Department of Health,Leicestershire Partnership NHS Trust,08/01/20,NURSE - BAND 5 - AGENCY,Coalville Ward 2,HCL NURSING,HNSI0000230,1740.71
Department of Health,Leicestershire Partnership NHS Trust,08/01/20,NURSE - BAND 5 - AGENCY,Coleman Ward,HCL NURSING,HNSI0000230,941.53
Department of Health,Leicestershire Partnership NHS Trust,08/01/20,NURSE - BAND 5 - AGENCY,Dalgliesh Ward,HCL NURSING,HNSI0000230,406.23
Department of Health,Leicestershire Partnership NHS Trust,08/01/20,NURSE - BAND 5 - AGENCY,"East Planned Care - Oadby,Wigston & Harborough",HCL NURSING,HNSI0000230,2912.95
Department of Health,Leicestershire Partnership NHS Trust,08/01/20,NURSE - BAND 5 - AGENCY,"East Planned Care - Oadby,Wigston,Harb – Therapy",HCL NURSING,HNSI0000230,2205.14
Department of Health,Leicestershire Partnership NHS Trust,08/01/20,NURSE - BAND 2 - AGENCY,Fielding Palmer Nursing,HCL NURSING,HNSI0000230,141.76
Department of Health,Leicestershire Partnership NHS Trust,08/01/20,NURSE - BAND 5 - AGENCY,Fielding Palmer Nursing,HCL NURSING,HNSI0000230,4099.22
Department of Health,Leicestershire Partnership NHS Trust,08/01/20,NURSE - BAND 2 - AGENCY,Gwendolen Ward,HCL NURSING,HNSI0000230,253.19
Department of Health,Leicestershire Partnership NHS Trust,08/01/20,NURSE - BAND 5 - AGENCY,Gwendolen Ward,HCL NURSING,HNSI0000230,2537.98
Department of Health,Leicestershire Partnership NHS Trust,08/01/20,NURSE - BAND 2 - AGENCY,H&B Comm Hosp East Ward,HCL NURSING,HNSI0000230,1563.01
Department of Health,Leicestershire Partnership NHS Trust,08/01/20,NURSE - BAND 5 - AGENCY,H&B Comm Hosp East Ward,HCL NURSING,HNSI0000230,600.67
Department of Health,Leicestershire Partnership NHS Trust,08/01/20,NURSE - BAND 2 - AGENCY,H&B Comm Hosp North Ward,HCL NURSING,HNSI0000230,719.74
Department of Health,Leicestershire Partnership NHS Trust,08/01/20,NURSE - BAND 5 - AGENCY,H&B Comm Hosp North Ward,HCL NURSING,HNSI0000230,532.18
Department of Health,Leicestershire Partnership NHS Trust,08/01/20,NURSE - BAND 2 - AGENCY,Kirby Ward,HCL NURSING,HNSI0000230,194.67
Department of Health,Leicestershire Partnership NHS Trust,08/01/20,NURSE - BAND 5 - AGENCY,Lough Swithland Ward,HCL NURSING,HNSI0000230,2483.45
Department of Health,Leicestershire Partnership NHS Trust,08/01/20,NURSE - BAND 2 - AGENCY,St Lukes Stroke Ward,HCL NURSING,HNSI0000230,275.18
Department of Health,Leicestershire Partnership NHS Trust,08/01/20,NURSE - BAND 5 - AGENCY,St Lukes Stroke Ward,HCL NURSING,HNSI0000230,419.12
Department of Health,Leicestershire Partnership NHS Trust,08/01/20,NURSE - BAND 2 - AGENCY,St Lukes Ward 3,HCL NURSING,HNSI0000230,211.93
Department of Health,Leicestershire Partnership NHS Trust,08/01/20,NURSE - BAND 5 - AGENCY,St Lukes Ward 3,HCL NURSING,HNSI0000230,4802.85
Department of Health,Leicestershire Partnership NHS Trust,08/01/20,NURSE - BAND 2 - AGENCY,Welford Ward,HCL NURSING,HNSI0000230,120.09
Department of Health,Leicestershire Partnership NHS Trust,08/01/20,NURSE - BAND 5 - AGENCY,West Planned Care  - Charnwood Hub,HCL NURSING,HNSI0000230,80.12
Department of Health,Leicestershire Partnership NHS Trust,08/01/20,NURSE - BAND 5 - AGENCY,West Planned Care  - Charnwood Hub - Therapy,HCL NURSING,HNSI0000230,266.30
Department of Health,Leicestershire Partnership NHS Trust,08/01/20,PropCo Estates Management,St. Luke's Hospital (PROPCO),NHS PROPERTY SERVICES LTD,00000001/H223650,39248.00
Department of Health,Leicestershire Partnership NHS Trust,09/01/20,Other Non-Medical Supplies & Services,Inter Unit I & E Distribution,UHL NHS TRUST (RWE),L0231126,28467.35
Department of Health,Leicestershire Partnership NHS Trust,13/01/20,Crs_NHS_LT1y -Resus Inventory Supplied.,Balance Sheet Collection,SUPPLY CHAIN CO LTD,1010201411,39874.02
Department of Health,Leicestershire Partnership NHS Trust,13/01/20,GP IT Expenditure,Area Team,DELL COMPUTERS,7402585021,27116.76
Department of Health,Leicestershire Partnership NHS Trust,13/01/20,GP IT Expenditure,Area Team,DELL COMPUTERS,7402585073,27116.76
Department of Health,Leicestershire Partnership NHS Trust,13/01/20,Nurse - Band 6 -Agency,Adult City East CMHT - Merlyn Vaz,HCL NURSING,HNSI0000234,3623.50
Department of Health,Leicestershire Partnership NHS Trust,13/01/20,Nurse - Band 6 -Agency,Adult County Charnwood CMHT - Loughborough Base,HCL NURSING,HNSI0000234,2264.72
Department of Health,Leicestershire Partnership NHS Trust,13/01/20,Nurse - Band 6 -Agency,Adult County North West Leicestershire CMHT,HCL NURSING,HNSI0000234,2150.43
Department of Health,Leicestershire Partnership NHS Trust,13/01/20,Nurse - Band 6 -Agency,Adult County West Leicestershire CMHT,HCL NURSING,HNSI0000234,2139.75
Department of Health,Leicestershire Partnership NHS Trust,13/01/20,NURSE - BAND 2 - AGENCY,Agnes Unit Management,HCL NURSING,HNSI0000234,4048.17
Department of Health,Leicestershire Partnership NHS Trust,13/01/20,NURSE - BAND 5 - AGENCY,Agnes Unit Management,HCL NURSING,HNSI0000234,2125.17
Department of Health,Leicestershire Partnership NHS Trust,13/01/20,NURSE - BAND 2 - AGENCY,Ashby Ward (Bradgate Unit),HCL NURSING,HNSI0000234,180.13
Department of Health,Leicestershire Partnership NHS Trust,13/01/20,Nurse - Band 6 -Agency,Assertive Outreach Services,HCL NURSING,HNSI0000234,641.93
Department of Health,Leicestershire Partnership NHS Trust,13/01/20,NURSE - BAND 5 - AGENCY,Aston Ward (Bradgate Unit),HCL NURSING,HNSI0000234,2616.48
Department of Health,Leicestershire Partnership NHS Trust,13/01/20,NURSE - BAND 2 - AGENCY,Beaumont Ward - Bradgate Unit,HCL NURSING,HNSI0000234,247.22
Department of Health,Leicestershire Partnership NHS Trust,13/01/20,NURSE - BAND 5 - AGENCY,Beaumont Ward - Bradgate Unit,HCL NURSING,HNSI0000234,329.81
Department of Health,Leicestershire Partnership NHS Trust,13/01/20,NURSE - BAND 2 - AGENCY,Belvoir Psychiatric Intensive Care Unit,HCL NURSING,HNSI0000234,2334.13
Department of Health,Leicestershire Partnership NHS Trust,13/01/20,NURSE - BAND 5 - AGENCY,Belvoir Psychiatric Intensive Care Unit,HCL NURSING,HNSI0000234,2422.48
Department of Health,Leicestershire Partnership NHS Trust,13/01/20,NURSE - BAND 2 - AGENCY,Bosworth Ward - Bradgate Unit,HCL NURSING,HNSI0000234,168.41
Department of Health,Leicestershire Partnership NHS Trust,13/01/20,Nurse - Band 6 -Agency,Crisis Resolution,HCL NURSING,HNSI0000234,4415.70
Department of Health,Leicestershire Partnership NHS Trust,13/01/20,NURSE - BAND 5 - AGENCY,Griffin Ward (HPC),HCL NURSING,HNSI0000234,4788.68
Department of Health,Leicestershire Partnership NHS Trust,13/01/20,NURSE - BAND 2 - AGENCY,Heather Ward,HCL NURSING,HNSI0000234,223.60
Department of Health,Leicestershire Partnership NHS Trust,13/01/20,NURSE - BAND 5 - AGENCY,Heather Ward,HCL NURSING,HNSI0000234,3706.90
Department of Health,Leicestershire Partnership NHS Trust,13/01/20,NURSE - BAND 2 - AGENCY,Maple Ward,HCL NURSING,HNSI0000234,250.69
Department of Health,Leicestershire Partnership NHS Trust,13/01/20,Nurse - Band 6 -Agency,Mental Health Triage Team,HCL NURSING,HNSI0000234,2520.20
Department of Health,Leicestershire Partnership NHS Trust,13/01/20,NURSE - BAND 2 - AGENCY,Mill Lodge,HCL NURSING,HNSI0000234,185.22
Department of Health,Leicestershire Partnership NHS Trust,13/01/20,NURSE - BAND 5 - AGENCY,Mill Lodge,HCL NURSING,HNSI0000234,884.05
Department of Health,Leicestershire Partnership NHS Trust,13/01/20,NURSE - BAND 5 - AGENCY,Thornton Ward - Bradgate Unit,HCL NURSING,HNSI0000234,266.74
Department of Health,Leicestershire Partnership NHS Trust,13/01/20,NURSE - BAND 2 - AGENCY,Watermead Ward (Bradgate Unit),HCL NURSING,HNSI0000234,450.59
Department of Health,Leicestershire Partnership NHS Trust,13/01/20,NURSE - BAND 5 - AGENCY,Watermead Ward (Bradgate Unit),HCL NURSING,HNSI0000234,1402.61
Department of Health,Leicestershire Partnership NHS Trust,13/01/20,Nurse - Band 6 -Agency,Adult City East CMHT - Merlyn Vaz,HCL NURSING,HNSI0000239,1251.18
Department of Health,Leicestershire Partnership NHS Trust,13/01/20,Nurse - Band 6 -Agency,Adult County Charnwood CMHT - Loughborough Base,HCL NURSING,HNSI0000239,8.01
Department of Health,Leicestershire Partnership NHS Trust,13/01/20,Nurse - Band 6 -Agency,Adult County North West Leicestershire CMHT,HCL NURSING,HNSI0000239,641.93
Department of Health,Leicestershire Partnership NHS Trust,13/01/20,Nurse - Band 6 -Agency,Adult County West Leicestershire CMHT,HCL NURSING,HNSI0000239,1326.74
Department of Health,Leicestershire Partnership NHS Trust,13/01/20,NURSE - BAND 2 - AGENCY,Agnes Unit Management,HCL NURSING,HNSI0000239,2802.89
Department of Health,Leicestershire Partnership NHS Trust,13/01/20,NURSE - BAND 2 - AGENCY,Ashby Ward (Bradgate Unit),HCL NURSING,HNSI0000239,277.94
Department of Health,Leicestershire Partnership NHS Trust,13/01/20,Nurse - Band 6 -Agency,Assertive Outreach Services,HCL NURSING,HNSI0000239,213.98
Department of Health,Leicestershire Partnership NHS Trust,13/01/20,NURSE - BAND 2 - AGENCY,Aston Ward (Bradgate Unit),HCL NURSING,HNSI0000239,775.50
Department of Health,Leicestershire Partnership NHS Trust,13/01/20,NURSE - BAND 5 - AGENCY,Aston Ward (Bradgate Unit),HCL NURSING,HNSI0000239,381.01
Department of Health,Leicestershire Partnership NHS Trust,13/01/20,NURSE - BAND 2 - AGENCY,Beaumont Ward - Bradgate Unit,HCL NURSING,HNSI0000239,262.44
Department of Health,Leicestershire Partnership NHS Trust,13/01/20,NURSE - BAND 2 - AGENCY,Belvoir Psychiatric Intensive Care Unit,HCL NURSING,HNSI0000239,1183.85
Department of Health,Leicestershire Partnership NHS Trust,13/01/20,NURSE - BAND 5 - AGENCY,Belvoir Psychiatric Intensive Care Unit,HCL NURSING,HNSI0000239,3087.33
Department of Health,Leicestershire Partnership NHS Trust,13/01/20,NURSE - BAND 2 - AGENCY,Bosworth Ward - Bradgate Unit,HCL NURSING,HNSI0000239,648.08
Department of Health,Leicestershire Partnership NHS Trust,13/01/20,NURSE - BAND 5 - AGENCY,Bosworth Ward - Bradgate Unit,HCL NURSING,HNSI0000239,259.30
Department of Health,Leicestershire Partnership NHS Trust,13/01/20,Nurse - Band 6 -Agency,Crisis Resolution,HCL NURSING,HNSI0000239,1291.78
Department of Health,Leicestershire Partnership NHS Trust,13/01/20,NURSE - BAND 2 - AGENCY,Griffin Ward (HPC),HCL NURSING,HNSI0000239,425.67
Department of Health,Leicestershire Partnership NHS Trust,13/01/20,NURSE - BAND 5 - AGENCY,Griffin Ward (HPC),HCL NURSING,HNSI0000239,3228.94
Department of Health,Leicestershire Partnership NHS Trust,13/01/20,NURSE - BAND 5 - AGENCY,Heather Ward,HCL NURSING,HNSI0000239,939.21
Department of Health,Leicestershire Partnership NHS Trust,13/01/20,NURSE - BAND 2 - AGENCY,Mill Lodge,HCL NURSING,HNSI0000239,442.97
Department of Health,Leicestershire Partnership NHS Trust,13/01/20,NURSE - BAND 2 - AGENCY,Thornton Ward - Bradgate Unit,HCL NURSING,HNSI0000239,277.94
Department of Health,Leicestershire Partnership NHS Trust,13/01/20,NURSE - BAND 2 - AGENCY,Watermead Ward (Bradgate Unit),HCL NURSING,HNSI0000239,151.90
Department of Health,Leicestershire Partnership NHS Trust,13/01/20,NURSE - BAND 5 - AGENCY,Watermead Ward (Bradgate Unit),HCL NURSING,HNSI0000239,1161.19
Department of Health,Leicestershire Partnership NHS Trust,14/01/20,Payroll Deductions -Salary Sacrifice Cars Scheme,Balance Sheet Collection,TUSKER,24700,31627.23
Department of Health,Leicestershire Partnership NHS Trust,14/01/20,Payroll Deductions - Kiddi Vouchers,Balance Sheet Collection,WIDER PLAN LTD,5148611,34615.63
Department of Health,Leicestershire Partnership NHS Trust,15/01/20,NURSE - BAND 2 - AGENCY,Beechwood Ward,HCL NURSING,HNSI0000240,2236.43
Department of Health,Leicestershire Partnership NHS Trust,15/01/20,NURSE - BAND 5 - AGENCY,Beechwood Ward,HCL NURSING,HNSI0000240,962.44
Department of Health,Leicestershire Partnership NHS Trust,15/01/20,NURSE - BAND 3 - AGENCY,CHS Phlebotomy Service,HCL NURSING,HNSI0000240,585.36
Department of Health,Leicestershire Partnership NHS Trust,15/01/20,NURSE - BAND 5 - AGENCY,City Planned Care - East,HCL NURSING,HNSI0000240,14385.21
Department of Health,Leicestershire Partnership NHS Trust,15/01/20,NURSE - BAND 5 - AGENCY,City Planned Care - West,HCL NURSING,HNSI0000240,8553.73
Department of Health,Leicestershire Partnership NHS Trust,15/01/20,NURSE - BAND 5 - AGENCY,City Planned Care - West - Therapy,HCL NURSING,HNSI0000240,35.49
Department of Health,Leicestershire Partnership NHS Trust,15/01/20,Nurse - Band 6 -Agency,City West CMHT MHSOP,HCL NURSING,HNSI0000240,1688.09
Department of Health,Leicestershire Partnership NHS Trust,15/01/20,NURSE - BAND 2 - AGENCY,Clarendon Ward,HCL NURSING,HNSI0000240,218.93
Department of Health,Leicestershire Partnership NHS Trust,15/01/20,NURSE - BAND 5 - AGENCY,Clarendon Ward,HCL NURSING,HNSI0000240,1223.20
Department of Health,Leicestershire Partnership NHS Trust,15/01/20,NURSE - BAND 5 - AGENCY,Coalville Snibston Ward,HCL NURSING,HNSI0000240,954.59
Department of Health,Leicestershire Partnership NHS Trust,15/01/20,NURSE - BAND 2 - AGENCY,Coalville Ward 2,HCL NURSING,HNSI0000240,893.55
Department of Health,Leicestershire Partnership NHS Trust,15/01/20,NURSE - BAND 5 - AGENCY,Coalville Ward 2,HCL NURSING,HNSI0000240,632.49
Department of Health,Leicestershire Partnership NHS Trust,15/01/20,NURSE - BAND 5 - AGENCY,Dalgliesh Ward,HCL NURSING,HNSI0000240,374.96
Department of Health,Leicestershire Partnership NHS Trust,15/01/20,NURSE - BAND 5 - AGENCY,"East Planned Care - Oadby,Wigston & Harborough",HCL NURSING,HNSI0000240,3229.57
Department of Health,Leicestershire Partnership NHS Trust,15/01/20,NURSE - BAND 5 - AGENCY,"East Planned Care - Oadby,Wigston,Harb – Therapy",HCL NURSING,HNSI0000240,3039.59
Department of Health,Leicestershire Partnership NHS Trust,15/01/20,NURSE - BAND 5 - AGENCY,Fielding Palmer Nursing,HCL NURSING,HNSI0000240,3587.40
Department of Health,Leicestershire Partnership NHS Trust,15/01/20,NURSE - BAND 2 - AGENCY,Gwendolen Ward,HCL NURSING,HNSI0000240,792.88
Department of Health,Leicestershire Partnership NHS Trust,15/01/20,NURSE - BAND 5 - AGENCY,Gwendolen Ward,HCL NURSING,HNSI0000240,1874.14
Department of Health,Leicestershire Partnership NHS Trust,15/01/20,NURSE - BAND 2 - AGENCY,H&B Comm Hosp East Ward,HCL NURSING,HNSI0000240,277.94
Department of Health,Leicestershire Partnership NHS Trust,15/01/20,NURSE - BAND 5 - AGENCY,H&B Comm Hosp East Ward,HCL NURSING,HNSI0000240,386.13
Department of Health,Leicestershire Partnership NHS Trust,15/01/20,NURSE - BAND 2 - AGENCY,H&B Comm Hosp North Ward,HCL NURSING,HNSI0000240,817.27
Department of Health,Leicestershire Partnership NHS Trust,15/01/20,NURSE - BAND 5 - AGENCY,H&B Comm Hosp North Ward,HCL NURSING,HNSI0000240,651.60
Department of Health,Leicestershire Partnership NHS Trust,15/01/20,NURSE - BAND 2 - AGENCY,Kirby Ward,HCL NURSING,HNSI0000240,234.95
Department of Health,Leicestershire Partnership NHS Trust,15/01/20,NURSE - BAND 5 - AGENCY,Kirby Ward,HCL NURSING,HNSI0000240,687.43
Department of Health,Leicestershire Partnership NHS Trust,15/01/20,NURSE - BAND 5 - AGENCY,Lough Swithland Ward,HCL NURSING,HNSI0000240,2772.46
Department of Health,Leicestershire Partnership NHS Trust,15/01/20,NURSE - BAND 5 - AGENCY,Rutland Ward Nursing,HCL NURSING,HNSI0000240,437.03
Department of Health,Leicestershire Partnership NHS Trust,15/01/20,NURSE - BAND 5 - AGENCY,St Lukes Stroke Ward,HCL NURSING,HNSI0000240,514.90
Department of Health,Leicestershire Partnership NHS Trust,15/01/20,NURSE - BAND 2 - AGENCY,St Lukes Ward 3,HCL NURSING,HNSI0000240,277.94
Department of Health,Leicestershire Partnership NHS Trust,15/01/20,NURSE - BAND 5 - AGENCY,St Lukes Ward 3,HCL NURSING,HNSI0000240,1759.69
Department of Health,Leicestershire Partnership NHS Trust,15/01/20,NURSE - BAND 2 - AGENCY,Welford Ward,HCL NURSING,HNSI0000240,395.66
Department of Health,Leicestershire Partnership NHS Trust,15/01/20,NURSE - BAND 5 - AGENCY,Welford Ward,HCL NURSING,HNSI0000240,312.72
Department of Health,Leicestershire Partnership NHS Trust,16/01/20,Med Trainees - FY1,Medical Trainees,UHL NHS TRUST (RWE),L0237212,28983.84
Department of Health,Leicestershire Partnership NHS Trust,17/01/20,Internal Printing (machines and ink),Estates & Facilities Central,LEXMARK INTERNATIONAL LTD,900650007535,35356.15
Department of Health,Leicestershire Partnership NHS Trust,20/01/20,Nurse - Band 6 -Agency,Adult City East CMHT - Merlyn Vaz,HCL NURSING,HNSI0000243,1966.19
Department of Health,Leicestershire Partnership NHS Trust,20/01/20,Nurse - Band 6 -Agency,Adult County North West Leicestershire CMHT,HCL NURSING,HNSI0000243,1230.53
Department of Health,Leicestershire Partnership NHS Trust,20/01/20,Nurse - Band 6 -Agency,Adult County West Leicestershire CMHT,HCL NURSING,HNSI0000243,1198.31
Department of Health,Leicestershire Partnership NHS Trust,20/01/20,NURSE - BAND 2 - AGENCY,Agnes Unit Management,HCL NURSING,HNSI0000243,2930.21
Department of Health,Leicestershire Partnership NHS Trust,20/01/20,NURSE - BAND 5 - AGENCY,Agnes Unit Management,HCL NURSING,HNSI0000243,346.53
Department of Health,Leicestershire Partnership NHS Trust,20/01/20,NURSE - BAND 2 - AGENCY,Ashby Ward (Bradgate Unit),HCL NURSING,HNSI0000243,215.85
Department of Health,Leicestershire Partnership NHS Trust,20/01/20,Nurse - Band 6 -Agency,Assertive Outreach Services,HCL NURSING,HNSI0000243,641.93
Department of Health,Leicestershire Partnership NHS Trust,20/01/20,NURSE - BAND 2 - AGENCY,Aston Ward (Bradgate Unit),HCL NURSING,HNSI0000243,211.93
Department of Health,Leicestershire Partnership NHS Trust,20/01/20,NURSE - BAND 2 - AGENCY,Belvoir Psychiatric Intensive Care Unit,HCL NURSING,HNSI0000243,2574.61
Department of Health,Leicestershire Partnership NHS Trust,20/01/20,NURSE - BAND 5 - AGENCY,Belvoir Psychiatric Intensive Care Unit,HCL NURSING,HNSI0000243,2215.47
Department of Health,Leicestershire Partnership NHS Trust,20/01/20,NURSE - BAND 2 - AGENCY,Bosworth Ward - Bradgate Unit,HCL NURSING,HNSI0000243,223.60
Department of Health,Leicestershire Partnership NHS Trust,20/01/20,NURSE - BAND 5 - AGENCY,Bosworth Ward - Bradgate Unit,HCL NURSING,HNSI0000243,732.84
Department of Health,Leicestershire Partnership NHS Trust,20/01/20,Nurse - Band 6 -Agency,Crisis Resolution,HCL NURSING,HNSI0000243,2786.66
Department of Health,Leicestershire Partnership NHS Trust,20/01/20,NURSE - BAND 5 - AGENCY,Griffin Ward (HPC),HCL NURSING,HNSI0000243,6509.89
Department of Health,Leicestershire Partnership NHS Trust,20/01/20,NURSE - BAND 2 - AGENCY,Heather Ward,HCL NURSING,HNSI0000243,460.14
Department of Health,Leicestershire Partnership NHS Trust,20/01/20,NURSE - BAND 5 - AGENCY,Heather Ward,HCL NURSING,HNSI0000243,380.99
Department of Health,Leicestershire Partnership NHS Trust,20/01/20,Nurse - Band 6 -Agency,Leicestershire Psych-oncology Service,HCL NURSING,HNSI0000243,427.95
Department of Health,Leicestershire Partnership NHS Trust,20/01/20,NURSE - BAND 2 - AGENCY,Mill Lodge,HCL NURSING,HNSI0000243,116.19
Department of Health,Leicestershire Partnership NHS Trust,20/01/20,NURSE - BAND 2 - AGENCY,Phoenix Ward (HPC),HCL NURSING,HNSI0000243,168.41
Department of Health,Leicestershire Partnership NHS Trust,20/01/20,NURSE - BAND 2 - AGENCY,Sycamore (Willows),HCL NURSING,HNSI0000243,99.65
Department of Health,Leicestershire Partnership NHS Trust,20/01/20,NURSE - BAND 2 - AGENCY,Thornton Ward - Bradgate Unit,HCL NURSING,HNSI0000243,374.99
Department of Health,Leicestershire Partnership NHS Trust,20/01/20,NURSE - BAND 2 - AGENCY,Watermead Ward (Bradgate Unit),HCL NURSING,HNSI0000243,836.99
Department of Health,Leicestershire Partnership NHS Trust,20/01/20,NURSE - BAND 5 - AGENCY,Watermead Ward (Bradgate Unit),HCL NURSING,HNSI0000243,1126.88
Department of Health,Leicestershire Partnership NHS Trust,20/01/20,Nurse - Band 6 -Agency,Adult City East CMHT - Merlyn Vaz,HCL NURSING,HNSI0000248,2841.66
Department of Health,Leicestershire Partnership NHS Trust,20/01/20,Nurse - Band 6 -Agency,Adult County North West Leicestershire CMHT,HCL NURSING,HNSI0000248,1711.80
Department of Health,Leicestershire Partnership NHS Trust,20/01/20,Nurse - Band 6 -Agency,Adult County West Leicestershire CMHT,HCL NURSING,HNSI0000248,855.90
Department of Health,Leicestershire Partnership NHS Trust,20/01/20,NURSE - BAND 2 - AGENCY,Agnes Unit Management,HCL NURSING,HNSI0000248,1432.22
Department of Health,Leicestershire Partnership NHS Trust,20/01/20,NURSE - BAND 5 - AGENCY,Agnes Unit Management,HCL NURSING,HNSI0000248,634.21
Department of Health,Leicestershire Partnership NHS Trust,20/01/20,Nurse - Band 6 -Agency,Assertive Outreach Services,HCL NURSING,HNSI0000248,1069.88
Department of Health,Leicestershire Partnership NHS Trust,20/01/20,NURSE - BAND 2 - AGENCY,Aston Ward (Bradgate Unit),HCL NURSING,HNSI0000248,131.68
Department of Health,Leicestershire Partnership NHS Trust,20/01/20,NURSE - BAND 5 - AGENCY,Aston Ward (Bradgate Unit),HCL NURSING,HNSI0000248,898.22
Department of Health,Leicestershire Partnership NHS Trust,20/01/20,NURSE - BAND 5 - AGENCY,Beaumont Ward - Bradgate Unit,HCL NURSING,HNSI0000248,329.81
Department of Health,Leicestershire Partnership NHS Trust,20/01/20,NURSE - BAND 2 - AGENCY,Belvoir Psychiatric Intensive Care Unit,HCL NURSING,HNSI0000248,2377.64
Department of Health,Leicestershire Partnership NHS Trust,20/01/20,NURSE - BAND 5 - AGENCY,Belvoir Psychiatric Intensive Care Unit,HCL NURSING,HNSI0000248,1771.42
Department of Health,Leicestershire Partnership NHS Trust,20/01/20,NURSE - BAND 2 - AGENCY,Bosworth Ward - Bradgate Unit,HCL NURSING,HNSI0000248,159.02
Department of Health,Leicestershire Partnership NHS Trust,20/01/20,NURSE - BAND 5 - AGENCY,Bosworth Ward - Bradgate Unit,HCL NURSING,HNSI0000248,266.74
Department of Health,Leicestershire Partnership NHS Trust,20/01/20,Nurse - Band 6 -Agency,Crisis Resolution,HCL NURSING,HNSI0000248,1882.34
Department of Health,Leicestershire Partnership NHS Trust,20/01/20,NURSE - BAND 2 - AGENCY,Griffin Ward (HPC),HCL NURSING,HNSI0000248,113.85
Department of Health,Leicestershire Partnership NHS Trust,20/01/20,NURSE - BAND 5 - AGENCY,Griffin Ward (HPC),HCL NURSING,HNSI0000248,3135.98
Department of Health,Leicestershire Partnership NHS Trust,20/01/20,NURSE - BAND 2 - AGENCY,Heather Ward,HCL NURSING,HNSI0000248,607.44
Department of Health,Leicestershire Partnership NHS Trust,20/01/20,NURSE - BAND 5 - AGENCY,Heather Ward,HCL NURSING,HNSI0000248,2317.55
Department of Health,Leicestershire Partnership NHS Trust,20/01/20,Nurse - Band 6 -Agency,Mental Health Triage Team,HCL NURSING,HNSI0000248,4401.24
Department of Health,Leicestershire Partnership NHS Trust,20/01/20,NURSE - BAND 2 - AGENCY,Phoenix Ward (HPC),HCL NURSING,HNSI0000248,163.71
Department of Health,Leicestershire Partnership NHS Trust,20/01/20,NURSE - BAND 5 - AGENCY,Thornton Ward - Bradgate Unit,HCL NURSING,HNSI0000248,426.69
Department of Health,Leicestershire Partnership NHS Trust,20/01/20,NURSE - BAND 2 - AGENCY,Watermead Ward (Bradgate Unit),HCL NURSING,HNSI0000248,558.17
Department of Health,Leicestershire Partnership NHS Trust,20/01/20,NURSE - BAND 5 - AGENCY,Watermead Ward (Bradgate Unit),HCL NURSING,HNSI0000248,1989.03
Department of Health,Leicestershire Partnership NHS Trust,20/01/20,Crs_NHS_LT1y -Resus Inventory Supplied.,Balance Sheet Collection,SUPPLY CHAIN CO LTD,1010207457,47896.65
Department of Health,Leicestershire Partnership NHS Trust,20/01/20,NURSE - BAND 5 - AGENCY,Beechwood Ward,HCL NURSING,HNSI0000244,3249.85
Department of Health,Leicestershire Partnership NHS Trust,20/01/20,NURSE - BAND 5 - AGENCY,City Planned Care - East,HCL NURSING,HNSI0000244,10965.17
Department of Health,Leicestershire Partnership NHS Trust,20/01/20,NURSE - BAND 5 - AGENCY,City Planned Care - West,HCL NURSING,HNSI0000244,7255.40
Department of Health,Leicestershire Partnership NHS Trust,20/01/20,Nurse - Band 6 -Agency,City West CMHT MHSOP,HCL NURSING,HNSI0000244,855.90
Department of Health,Leicestershire Partnership NHS Trust,20/01/20,NURSE - BAND 5 - AGENCY,Clarendon Ward,HCL NURSING,HNSI0000244,406.23
Department of Health,Leicestershire Partnership NHS Trust,20/01/20,NURSE - BAND 2 - AGENCY,Coalville Ward 2,HCL NURSING,HNSI0000244,106.77
Department of Health,Leicestershire Partnership NHS Trust,20/01/20,NURSE - BAND 5 - AGENCY,Coalville Ward 2,HCL NURSING,HNSI0000244,759.08
Department of Health,Leicestershire Partnership NHS Trust,20/01/20,NURSE - BAND 2 - AGENCY,Coleman Ward,HCL NURSING,HNSI0000244,303.86
Department of Health,Leicestershire Partnership NHS Trust,20/01/20,NURSE - BAND 5 - AGENCY,Dalgliesh Ward,HCL NURSING,HNSI0000244,954.59
Department of Health,Leicestershire Partnership NHS Trust,20/01/20,NURSE - BAND 5 - AGENCY,"East Planned Care - Oadby,Wigston & Harborough",HCL NURSING,HNSI0000244,4958.96
Department of Health,Leicestershire Partnership NHS Trust,20/01/20,NURSE - BAND 2 - AGENCY,Fielding Palmer Nursing,HCL NURSING,HNSI0000244,434.95
Department of Health,Leicestershire Partnership NHS Trust,20/01/20,NURSE - BAND 5 - AGENCY,Fielding Palmer Nursing,HCL NURSING,HNSI0000244,1744.29
Department of Health,Leicestershire Partnership NHS Trust,20/01/20,NURSE - BAND 2 - AGENCY,Gwendolen Ward,HCL NURSING,HNSI0000244,390.96
Department of Health,Leicestershire Partnership NHS Trust,20/01/20,NURSE - BAND 5 - AGENCY,Gwendolen Ward,HCL NURSING,HNSI0000244,1244.11
Department of Health,Leicestershire Partnership NHS Trust,20/01/20,NURSE - BAND 5 - AGENCY,H&B Comm Hosp East Ward,HCL NURSING,HNSI0000244,478.09
Department of Health,Leicestershire Partnership NHS Trust,20/01/20,NURSE - BAND 2 - AGENCY,H&B Comm Hosp North Ward,HCL NURSING,HNSI0000244,325.70
Department of Health,Leicestershire Partnership NHS Trust,20/01/20,NURSE - BAND 2 - AGENCY,Kirby Ward,HCL NURSING,HNSI0000244,194.67
Department of Health,Leicestershire Partnership NHS Trust,20/01/20,NURSE - BAND 5 - AGENCY,Kirby Ward,HCL NURSING,HNSI0000244,970.37
Department of Health,Leicestershire Partnership NHS Trust,20/01/20,NURSE - BAND 2 - AGENCY,Lough Swithland Ward,HCL NURSING,HNSI0000244,321.12
Department of Health,Leicestershire Partnership NHS Trust,20/01/20,NURSE - BAND 5 - AGENCY,Lough Swithland Ward,HCL NURSING,HNSI0000244,406.23
Department of Health,Leicestershire Partnership NHS Trust,20/01/20,NURSE - BAND 5 - AGENCY,Rutland Ward Nursing,HCL NURSING,HNSI0000244,660.09
Department of Health,Leicestershire Partnership NHS Trust,20/01/20,NURSE - BAND 5 - AGENCY,St Lukes Stroke Ward,HCL NURSING,HNSI0000244,393.35
Department of Health,Leicestershire Partnership NHS Trust,20/01/20,NURSE - BAND 2 - AGENCY,St Lukes Ward 3,HCL NURSING,HNSI0000244,572.38
Department of Health,Leicestershire Partnership NHS Trust,20/01/20,NURSE - BAND 5 - AGENCY,St Lukes Ward 3,HCL NURSING,HNSI0000244,1621.21
Department of Health,Leicestershire Partnership NHS Trust,20/01/20,NURSE - BAND 5 - AGENCY,Welford Ward,HCL NURSING,HNSI0000244,306.60
Department of Health,Leicestershire Partnership NHS Trust,20/01/20,Insurance Costs,Chief Executives Office,NHS LITIGATION AUTHORITY,SICX400725,103464.70
Department of Health,Leicestershire Partnership NHS Trust,20/01/20,UHL Facilities Management SLA,Estates Central Invoices To Recharge,UHL NHS TRUST (RWE),L0237263,827106.58
Department of Health,Leicestershire Partnership NHS Trust,21/01/20,NURSE - BAND 2 - AGENCY,Beechwood Ward,HCL NURSING,HNSI0000249,168.41
Department of Health,Leicestershire Partnership NHS Trust,21/01/20,NURSE - BAND 5 - AGENCY,Beechwood Ward,HCL NURSING,HNSI0000249,5175.86
Department of Health,Leicestershire Partnership NHS Trust,21/01/20,NURSE - BAND 5 - AGENCY,City Planned Care - East,HCL NURSING,HNSI0000249,21020.03
Department of Health,Leicestershire Partnership NHS Trust,21/01/20,NURSE - BAND 5 - AGENCY,City Planned Care - West,HCL NURSING,HNSI0000249,11583.76
Department of Health,Leicestershire Partnership NHS Trust,21/01/20,Nurse - Band 6 -Agency,City West CMHT MHSOP,HCL NURSING,HNSI0000249,2952.97
Department of Health,Leicestershire Partnership NHS Trust,21/01/20,NURSE - BAND 2 - AGENCY,Clarendon Ward,HCL NURSING,HNSI0000249,109.19
Department of Health,Leicestershire Partnership NHS Trust,21/01/20,NURSE - BAND 5 - AGENCY,Clarendon Ward,HCL NURSING,HNSI0000249,2837.76
Department of Health,Leicestershire Partnership NHS Trust,21/01/20,NURSE - BAND 2 - AGENCY,Coalville Snibston Ward,HCL NURSING,HNSI0000249,211.93
Department of Health,Leicestershire Partnership NHS Trust,21/01/20,NURSE - BAND 5 - AGENCY,Coalville Ward 2,HCL NURSING,HNSI0000249,1584.60
Department of Health,Leicestershire Partnership NHS Trust,21/01/20,NURSE - BAND 2 - AGENCY,Coleman Ward,HCL NURSING,HNSI0000249,908.47
Department of Health,Leicestershire Partnership NHS Trust,21/01/20,NURSE - BAND 5 - AGENCY,Coleman Ward,HCL NURSING,HNSI0000249,312.72
Department of Health,Leicestershire Partnership NHS Trust,21/01/20,NURSE - BAND 5 - AGENCY,"East Planned Care - Oadby,Wigston & Harborough",HCL NURSING,HNSI0000249,5276.22
Department of Health,Leicestershire Partnership NHS Trust,21/01/20,NURSE - BAND 5 - AGENCY,"East Planned Care - Oadby,Wigston,Harb – Therapy",HCL NURSING,HNSI0000249,93.66
Department of Health,Leicestershire Partnership NHS Trust,21/01/20,NURSE - BAND 2 - AGENCY,Fielding Palmer Nursing,HCL NURSING,HNSI0000249,144.97
Department of Health,Leicestershire Partnership NHS Trust,21/01/20,NURSE - BAND 5 - AGENCY,Fielding Palmer Nursing,HCL NURSING,HNSI0000249,3069.16
Department of Health,Leicestershire Partnership NHS Trust,21/01/20,NURSE - BAND 5 - AGENCY,Gwendolen Ward,HCL NURSING,HNSI0000249,1546.70
Department of Health,Leicestershire Partnership NHS Trust,21/01/20,NURSE - BAND 5 - AGENCY,H&B Comm Hosp East Ward,HCL NURSING,HNSI0000249,467.59
Department of Health,Leicestershire Partnership NHS Trust,21/01/20,NURSE - BAND 2 - AGENCY,H&B Comm Hosp North Ward,HCL NURSING,HNSI0000249,211.93
Department of Health,Leicestershire Partnership NHS Trust,21/01/20,NURSE - BAND 5 - AGENCY,H&B Comm Hosp North Ward,HCL NURSING,HNSI0000249,1768.43
Department of Health,Leicestershire Partnership NHS Trust,21/01/20,NURSE - BAND 5 - AGENCY,Kirby Ward,HCL NURSING,HNSI0000249,907.73
Department of Health,Leicestershire Partnership NHS Trust,21/01/20,NURSE - BAND 2 - AGENCY,Lough Swithland Ward,HCL NURSING,HNSI0000249,144.97
Department of Health,Leicestershire Partnership NHS Trust,21/01/20,NURSE - BAND 5 - AGENCY,St Lukes Stroke Ward,HCL NURSING,HNSI0000249,366.54
Department of Health,Leicestershire Partnership NHS Trust,21/01/20,NURSE - BAND 2 - AGENCY,St Lukes Ward 3,HCL NURSING,HNSI0000249,106.77
Department of Health,Leicestershire Partnership NHS Trust,21/01/20,NURSE - BAND 5 - AGENCY,St Lukes Ward 3,HCL NURSING,HNSI0000249,3321.37
Department of Health,Leicestershire Partnership NHS Trust,21/01/20,NURSE - BAND 5 - AGENCY,Welford Ward,HCL NURSING,HNSI0000249,302.58
Department of Health,Leicestershire Partnership NHS Trust,21/01/20,Med GP Trainees,Medical Trainees,ST.HELENS & KNOWSLEY NHS TRUST,16792619,60000.00
Department of Health,Leicestershire Partnership NHS Trust,22/01/20,FP10'S,Adult City Central CMHT - St Peters,NHS BUS SERVICES AUTHORITY,1000063068,250.25
Department of Health,Leicestershire Partnership NHS Trust,22/01/20,FP10'S,Adult City Drugs,NHS BUS SERVICES AUTHORITY,1000063068,25169.61
Department of Health,Leicestershire Partnership NHS Trust,22/01/20,FP10'S,Adult County Drugs,NHS BUS SERVICES AUTHORITY,1000063068,29129.25
Department of Health,Leicestershire Partnership NHS Trust,22/01/20,FP10'S,CAMHS Outpatients,NHS BUS SERVICES AUTHORITY,1000063068,10937.06
Department of Health,Leicestershire Partnership NHS Trust,22/01/20,FP10'S,Children Services Medical,NHS BUS SERVICES AUTHORITY,1000063068,6804.28
Department of Health,Leicestershire Partnership NHS Trust,22/01/20,FP10'S,Dementia Related Drugs and Investigations,NHS BUS SERVICES AUTHORITY,1000063068,6432.33
Department of Health,Leicestershire Partnership NHS Trust,22/01/20,FP10'S,Eating Disorders Outpatient Service,NHS BUS SERVICES AUTHORITY,1000063068,417.12
Department of Health,Leicestershire Partnership NHS Trust,22/01/20,FP10'S,Forensic Services - Community,NHS BUS SERVICES AUTHORITY,1000063068,10.76
Department of Health,Leicestershire Partnership NHS Trust,22/01/20,FP10'S,LOROS Pharmacy,NHS BUS SERVICES AUTHORITY,1000063068,739.70
Department of Health,Leicestershire Partnership NHS Trust,22/01/20,FP10'S,Leicestershire Psych-oncology Service,NHS BUS SERVICES AUTHORITY,1000063068,322.39
Department of Health,Leicestershire Partnership NHS Trust,22/01/20,FP10'S,Lough Swithland Ward,NHS BUS SERVICES AUTHORITY,1000063068,1.50
Department of Health,Leicestershire Partnership NHS Trust,22/01/20,FP10'S,PIER Team - Early Intervention Services,NHS BUS SERVICES AUTHORITY,1000063068,12620.42
Department of Health,Leicestershire Partnership NHS Trust,22/01/20,FP10'S,Snr Med Staff (Inc Med Reps),NHS BUS SERVICES AUTHORITY,1000063068,3343.41
Department of Health,Leicestershire Partnership NHS Trust,22/01/20,Cytogenetic Testing,Children Services Medical,UHL NHS TRUST (RWE),L0237547,28473.74
Department of Health,Leicestershire Partnership NHS Trust,24/01/20,CHP Estates Management,Belgrave Health Centre (CHP),COMM HLTH PARTNERSHIPS LTD,0060138393,9466.11
Department of Health,Leicestershire Partnership NHS Trust,24/01/20,CHP Estates Management,Merlyn Vaz Centre (CHP),COMM HLTH PARTNERSHIPS LTD,0060138393,57461.09
Department of Health,Leicestershire Partnership NHS Trust,24/01/20,CHP Estates Management,Westcotes Health Centre (CHP),COMM HLTH PARTNERSHIPS LTD,0060138393,12018.80
Department of Health,Leicestershire Partnership NHS Trust,27/01/20,Crs_NHS_LT1y -Resus Inventory Supplied.,Balance Sheet Collection,SUPPLY CHAIN CO LTD,1010212076,33243.07
Department of Health,Leicestershire Partnership NHS Trust,27/01/20,WIP Project Not in BS - Buildings excl Dwellings,Work in Progress,INTERSERVE CONSTRUCTION LTD,VEM55187,26213.30
Department of Health,Leicestershire Partnership NHS Trust,28/01/20,Contract : Accomodation,Out of County Income - Inpateints Project,TURNING POINT,SI-TPS-00026054,47507.58
Department of Health,Leicestershire Partnership NHS Trust,28/01/20,NURSE - BAND 2 - AGENCY,Beechwood Ward,HCL NURSING,HNSI0000254,211.93
Department of Health,Leicestershire Partnership NHS Trust,28/01/20,NURSE - BAND 5 - AGENCY,Beechwood Ward,HCL NURSING,HNSI0000254,1869.79
Department of Health,Leicestershire Partnership NHS Trust,28/01/20,NURSE - BAND 5 - AGENCY,City Planned Care - East,HCL NURSING,HNSI0000254,14629.24
Department of Health,Leicestershire Partnership NHS Trust,28/01/20,NURSE - BAND 5 - AGENCY,City Planned Care - West,HCL NURSING,HNSI0000254,6615.30
Department of Health,Leicestershire Partnership NHS Trust,28/01/20,Nurse - Band 6 -Agency,City West CMHT MHSOP,HCL NURSING,HNSI0000254,1069.88
Department of Health,Leicestershire Partnership NHS Trust,28/01/20,NURSE - BAND 5 - AGENCY,Clarendon Ward,HCL NURSING,HNSI0000254,2718.00
Department of Health,Leicestershire Partnership NHS Trust,28/01/20,NURSE - BAND 2 - AGENCY,Coalville Snibston Ward,HCL NURSING,HNSI0000254,356.42
Department of Health,Leicestershire Partnership NHS Trust,28/01/20,NURSE - BAND 2 - AGENCY,Coalville Ward 2,HCL NURSING,HNSI0000254,106.77
Department of Health,Leicestershire Partnership NHS Trust,28/01/20,NURSE - BAND 5 - AGENCY,Coalville Ward 2,HCL NURSING,HNSI0000254,1559.46
Department of Health,Leicestershire Partnership NHS Trust,28/01/20,NURSE - BAND 5 - AGENCY,Coleman Ward,HCL NURSING,HNSI0000254,1214.34
Department of Health,Leicestershire Partnership NHS Trust,28/01/20,NURSE - BAND 5 - AGENCY,Dalgliesh Ward,HCL NURSING,HNSI0000254,893.40
Department of Health,Leicestershire Partnership NHS Trust,28/01/20,NURSE - BAND 5 - AGENCY,"East Planned Care - Oadby,Wigston & Harborough",HCL NURSING,HNSI0000254,5410.46
Department of Health,Leicestershire Partnership NHS Trust,28/01/20,NURSE - BAND 5 - AGENCY,Fielding Palmer Nursing,HCL NURSING,HNSI0000254,3742.13
Department of Health,Leicestershire Partnership NHS Trust,28/01/20,NURSE - BAND 2 - AGENCY,Gwendolen Ward,HCL NURSING,HNSI0000254,251.96
Department of Health,Leicestershire Partnership NHS Trust,28/01/20,NURSE - BAND 5 - AGENCY,Gwendolen Ward,HCL NURSING,HNSI0000254,2930.20
Department of Health,Leicestershire Partnership NHS Trust,28/01/20,NURSE - BAND 2 - AGENCY,H&B Comm Hosp East Ward,HCL NURSING,HNSI0000254,211.93
Department of Health,Leicestershire Partnership NHS Trust,28/01/20,NURSE - BAND 2 - AGENCY,H&B Comm Hosp North Ward,HCL NURSING,HNSI0000254,215.96
Department of Health,Leicestershire Partnership NHS Trust,28/01/20,NURSE - BAND 5 - AGENCY,H&B Comm Hosp North Ward,HCL NURSING,HNSI0000254,935.17
Department of Health,Leicestershire Partnership NHS Trust,28/01/20,NURSE - BAND 2 - AGENCY,Lough Swithland Ward,HCL NURSING,HNSI0000254,109.19
Department of Health,Leicestershire Partnership NHS Trust,28/01/20,NURSE - BAND 5 - AGENCY,Lough Swithland Ward,HCL NURSING,HNSI0000254,329.81
Department of Health,Leicestershire Partnership NHS Trust,28/01/20,NURSE - BAND 5 - AGENCY,Rutland Ward Nursing,HCL NURSING,HNSI0000254,600.67
Department of Health,Leicestershire Partnership NHS Trust,28/01/20,NURSE - BAND 2 - AGENCY,St Lukes Stroke Ward,HCL NURSING,HNSI0000254,421.23
Department of Health,Leicestershire Partnership NHS Trust,28/01/20,NURSE - BAND 5 - AGENCY,St Lukes Stroke Ward,HCL NURSING,HNSI0000254,370.38
Department of Health,Leicestershire Partnership NHS Trust,28/01/20,NURSE - BAND 2 - AGENCY,St Lukes Ward 3,HCL NURSING,HNSI0000254,106.77
Department of Health,Leicestershire Partnership NHS Trust,28/01/20,NURSE - BAND 5 - AGENCY,St Lukes Ward 3,HCL NURSING,HNSI0000254,2703.81
Department of Health,Leicestershire Partnership NHS Trust,28/01/20,NURSE - BAND 2 - AGENCY,Welford Ward,HCL NURSING,HNSI0000254,113.85
Department of Health,Leicestershire Partnership NHS Trust,29/01/20,Nurse - Band 6 -Agency,Adult City East CMHT - Merlyn Vaz,HCL NURSING,HNSI0000253,2567.70
Department of Health,Leicestershire Partnership NHS Trust,29/01/20,Nurse - Band 6 -Agency,Adult County North West Leicestershire CMHT,HCL NURSING,HNSI0000253,1711.80
Department of Health,Leicestershire Partnership NHS Trust,29/01/20,NURSE - BAND 2 - AGENCY,Agnes Unit Management,HCL NURSING,HNSI0000253,730.53
Department of Health,Leicestershire Partnership NHS Trust,29/01/20,NURSE - BAND 5 - AGENCY,Agnes Unit Management,HCL NURSING,HNSI0000253,308.20
Department of Health,Leicestershire Partnership NHS Trust,29/01/20,NURSE - BAND 2 - AGENCY,Ashby Ward (Bradgate Unit),HCL NURSING,HNSI0000253,137.66
Department of Health,Leicestershire Partnership NHS Trust,29/01/20,NURSE - BAND 5 - AGENCY,Ashby Ward (Bradgate Unit),HCL NURSING,HNSI0000253,1083.41
Department of Health,Leicestershire Partnership NHS Trust,29/01/20,Nurse - Band 6 -Agency,Assertive Outreach Services,HCL NURSING,HNSI0000253,1069.88
Department of Health,Leicestershire Partnership NHS Trust,29/01/20,NURSE - BAND 5 - AGENCY,Aston Ward (Bradgate Unit),HCL NURSING,HNSI0000253,1103.22
Department of Health,Leicestershire Partnership NHS Trust,29/01/20,NURSE - BAND 2 - AGENCY,Beaumont Ward - Bradgate Unit,HCL NURSING,HNSI0000253,144.78
Department of Health,Leicestershire Partnership NHS Trust,29/01/20,NURSE - BAND 2 - AGENCY,Belvoir Psychiatric Intensive Care Unit,HCL NURSING,HNSI0000253,1895.26
Department of Health,Leicestershire Partnership NHS Trust,29/01/20,NURSE - BAND 2 - AGENCY,Bosworth Ward - Bradgate Unit,HCL NURSING,HNSI0000253,211.93
Department of Health,Leicestershire Partnership NHS Trust,29/01/20,Nurse - Band 6 -Agency,Crisis Resolution,HCL NURSING,HNSI0000253,6009.59
Department of Health,Leicestershire Partnership NHS Trust,29/01/20,NURSE - BAND 2 - AGENCY,Griffin Ward (HPC),HCL NURSING,HNSI0000253,396.93
Department of Health,Leicestershire Partnership NHS Trust,29/01/20,NURSE - BAND 5 - AGENCY,Griffin Ward (HPC),HCL NURSING,HNSI0000253,3985.73
Department of Health,Leicestershire Partnership NHS Trust,29/01/20,NURSE - BAND 2 - AGENCY,Heather Ward,HCL NURSING,HNSI0000253,288.75
Department of Health,Leicestershire Partnership NHS Trust,29/01/20,NURSE - BAND 5 - AGENCY,Heather Ward,HCL NURSING,HNSI0000253,669.77
Department of Health,Leicestershire Partnership NHS Trust,29/01/20,Nurse - Band 6 -Agency,Leicestershire Psych-oncology Service,HCL NURSING,HNSI0000253,485.39
Department of Health,Leicestershire Partnership NHS Trust,29/01/20,NURSE - BAND 2 - AGENCY,Maple Ward,HCL NURSING,HNSI0000253,168.41
Department of Health,Leicestershire Partnership NHS Trust,29/01/20,Nurse - Band 6 -Agency,Mental Health Triage Team,HCL NURSING,HNSI0000253,1612.93
Department of Health,Leicestershire Partnership NHS Trust,29/01/20,NURSE - BAND 2 - AGENCY,Stewart House,HCL NURSING,HNSI0000253,116.19
Department of Health,Leicestershire Partnership NHS Trust,29/01/20,NURSE - BAND 2 - AGENCY,Watermead Ward (Bradgate Unit),HCL NURSING,HNSI0000253,161.29
Department of Health,Leicestershire Partnership NHS Trust,29/01/20,NURSE - BAND 5 - AGENCY,Watermead Ward (Bradgate Unit),HCL NURSING,HNSI0000253,2356.50
Department of Health,Leicestershire Partnership NHS Trust,30/01/20,Landline Telephone Rental / Calls,"Beaumont Leys Health Centre (P94, LPT)",VIRGIN MEDIA BUSINESS,853083001/004/0120,400.52
Department of Health,Leicestershire Partnership NHS Trust,30/01/20,Landline Telephone Rental / Calls,Belgrave Health Centre (CHP),VIRGIN MEDIA BUSINESS,853083001/004/0120,423.58
Department of Health,Leicestershire Partnership NHS Trust,30/01/20,Landline Telephone Rental / Calls,"Bennion Centre (including Forest Grange Day Unit) (P8, LPT)",VIRGIN MEDIA BUSINESS,853083001/004/0120,7.74
Department of Health,Leicestershire Partnership NHS Trust,30/01/20,Landline Telephone Rental / Calls,"Bradgate Unit (including Glenvale day Unit) (P7, LPT)",VIRGIN MEDIA BUSINESS,853083001/004/0120,7132.13
Department of Health,Leicestershire Partnership NHS Trust,30/01/20,Landline Telephone Rental / Calls,Braunstone Health and Social Care Centre (Part) (PROPCO),VIRGIN MEDIA BUSINESS,853083001/004/0120,1224.84
Department of Health,Leicestershire Partnership NHS Trust,30/01/20,Landline Telephone Rental / Calls,Bridge Park Plaza - First Floor (LPT),VIRGIN MEDIA BUSINESS,853083001/004/0120,3851.54
Department of Health,Leicestershire Partnership NHS Trust,30/01/20,Landline Telephone Rental / Calls,"Coalville Community Hospital (P138, LPT)",VIRGIN MEDIA BUSINESS,853083001/004/0120,1325.01
Department of Health,Leicestershire Partnership NHS Trust,30/01/20,Landline Telephone Rental / Calls,"Coalville Health Centre (P121, LPT)",VIRGIN MEDIA BUSINESS,853083001/004/0120,342.10
Department of Health,Leicestershire Partnership NHS Trust,30/01/20,Landline Telephone Rental / Calls,County Hall,VIRGIN MEDIA BUSINESS,853083001/004/0120,1361.86
Department of Health,Leicestershire Partnership NHS Trust,30/01/20,Landline Telephone Rental / Calls,Estates & Facilities Central,VIRGIN MEDIA BUSINESS,853083001/004/0120,5321.43
Department of Health,Leicestershire Partnership NHS Trust,30/01/20,Landline Telephone Rental / Calls,"Evington Centre (P6, LPT)",VIRGIN MEDIA BUSINESS,853083001/004/0120,1521.69
Department of Health,Leicestershire Partnership NHS Trust,30/01/20,Landline Telephone Rental / Calls,HIS,VIRGIN MEDIA BUSINESS,853083001/004/0120,2874.52
Department of Health,Leicestershire Partnership NHS Trust,30/01/20,Landline Telephone Rental / Calls,"Hawthorne Centre - Coalville (P14, LPT)",VIRGIN MEDIA BUSINESS,853083001/004/0120,480.68
Department of Health,Leicestershire Partnership NHS Trust,30/01/20,Landline Telephone Rental / Calls,Hinckley & District Hospital (PROPCO),VIRGIN MEDIA BUSINESS,853083001/004/0120,972.68
Department of Health,Leicestershire Partnership NHS Trust,30/01/20,Landline Telephone Rental / Calls,"Hinckley and Bosworth Community Hospital (Sunnyside) (P133, LPT)",VIRGIN MEDIA BUSINESS,853083001/004/0120,1051.38
Department of Health,Leicestershire Partnership NHS Trust,30/01/20,Landline Telephone Rental / Calls,Hood Park Leisure Centre Clinic,VIRGIN MEDIA BUSINESS,853083001/004/0120,67.45
Department of Health,Leicestershire Partnership NHS Trust,30/01/20,Landline Telephone Rental / Calls,"Hynca Lodge (P33, LPT)",VIRGIN MEDIA BUSINESS,853083001/004/0120,365.24
Department of Health,Leicestershire Partnership NHS Trust,30/01/20,Landline Telephone Rental / Calls,"Legion House, Ashby",VIRGIN MEDIA BUSINESS,853083001/004/0120,51.18
Department of Health,Leicestershire Partnership NHS Trust,30/01/20,Landline Telephone Rental / Calls,Loughborough Health Centre (PROPCO),VIRGIN MEDIA BUSINESS,853083001/004/0120,8.10
Department of Health,Leicestershire Partnership NHS Trust,30/01/20,Landline Telephone Rental / Calls,"Loughborough Hospital (P136, LPT)",VIRGIN MEDIA BUSINESS,853083001/004/0120,4411.72
Department of Health,Leicestershire Partnership NHS Trust,30/01/20,Landline Telephone Rental / Calls,Mawson House (LPT),VIRGIN MEDIA BUSINESS,853083001/004/0120,462.13
Department of Health,Leicestershire Partnership NHS Trust,30/01/20,Landline Telephone Rental / Calls,Melbourne Centre (Pt Grnd flr) (PROPCO),VIRGIN MEDIA BUSINESS,853083001/004/0120,6.45
Department of Health,Leicestershire Partnership NHS Trust,30/01/20,Landline Telephone Rental / Calls,Melton Mowbray Hospital (previously St. Mary's) (PROPCO),VIRGIN MEDIA BUSINESS,853083001/004/0120,1541.94
Department of Health,Leicestershire Partnership NHS Trust,30/01/20,Landline Telephone Rental / Calls,Merlyn Vaz Centre (CHP),VIRGIN MEDIA BUSINESS,853083001/004/0120,2077.28
Department of Health,Leicestershire Partnership NHS Trust,30/01/20,Landline Telephone Rental / Calls,"Mett Centre (P49, LPT)",VIRGIN MEDIA BUSINESS,853083001/004/0120,90.64
Department of Health,Leicestershire Partnership NHS Trust,30/01/20,Landline Telephone Rental / Calls,NSPCC Training Cente,VIRGIN MEDIA BUSINESS,853083001/004/0120,172.43
Department of Health,Leicestershire Partnership NHS Trust,30/01/20,Landline Telephone Rental / Calls,New Parks Health Centre (PROPCO),VIRGIN MEDIA BUSINESS,853083001/004/0120,1381.35
Department of Health,Leicestershire Partnership NHS Trust,30/01/20,Landline Telephone Rental / Calls,"OSL House (P54, LPT)",VIRGIN MEDIA BUSINESS,853083001/004/0120,1490.76
Department of Health,Leicestershire Partnership NHS Trust,30/01/20,Landline Telephone Rental / Calls,"Orchard Resource Centre (P15, LPT)",VIRGIN MEDIA BUSINESS,853083001/004/0120,532.08
Department of Health,Leicestershire Partnership NHS Trust,30/01/20,Landline Telephone Rental / Calls,Pasley Road Health Centre (PROPCO),VIRGIN MEDIA BUSINESS,853083001/004/0120,118.82
Department of Health,Leicestershire Partnership NHS Trust,30/01/20,Landline Telephone Rental / Calls,"Prince Philip House (P96, LPT)",VIRGIN MEDIA BUSINESS,853083001/004/0120,1594.73
Department of Health,Leicestershire Partnership NHS Trust,30/01/20,Landline Telephone Rental / Calls,Rushey Mead Health Centre (PROPCO),VIRGIN MEDIA BUSINESS,853083001/004/0120,68.42
Department of Health,Leicestershire Partnership NHS Trust,30/01/20,Landline Telephone Rental / Calls,"Shepshed Health Centre (P123, LPT)",VIRGIN MEDIA BUSINESS,853083001/004/0120,10.96
Department of Health,Leicestershire Partnership NHS Trust,30/01/20,Landline Telephone Rental / Calls,"Springfield Road Health Centre (P92, LPT)",VIRGIN MEDIA BUSINESS,853083001/004/0120,388.80
Department of Health,Leicestershire Partnership NHS Trust,30/01/20,Landline Telephone Rental / Calls,St Johns House (1st Floor) (PROPCO),VIRGIN MEDIA BUSINESS,853083001/004/0120,1522.95
Department of Health,Leicestershire Partnership NHS Trust,30/01/20,Landline Telephone Rental / Calls,St Peters Primary Care Centre (CHP),VIRGIN MEDIA BUSINESS,853083001/004/0120,2406.64
Department of Health,Leicestershire Partnership NHS Trust,30/01/20,Landline Telephone Rental / Calls,"Stewart House (P61, LPT)",VIRGIN MEDIA BUSINESS,853083001/004/0120,7.74
Department of Health,Leicestershire Partnership NHS Trust,30/01/20,Landline Telephone Rental / Calls,"Swithland House - London Road 352 (P44, LPT)",VIRGIN MEDIA BUSINESS,853083001/004/0120,331.49
Department of Health,Leicestershire Partnership NHS Trust,30/01/20,Landline Telephone Rental / Calls,"The Cedars (P19, LPT)",VIRGIN MEDIA BUSINESS,853083001/004/0120,573.60
Department of Health,Leicestershire Partnership NHS Trust,30/01/20,Landline Telephone Rental / Calls,"The Willows - Cordelia Close (P22, LPT)",VIRGIN MEDIA BUSINESS,853083001/004/0120,524.00
Department of Health,Leicestershire Partnership NHS Trust,30/01/20,Landline Telephone Rental / Calls,Uppingham Road Health Centre (PROPCO),VIRGIN MEDIA BUSINESS,853083001/004/0120,277.57
Department of Health,Leicestershire Partnership NHS Trust,30/01/20,Landline Telephone Rental / Calls,"Valentine Centre (P3, LPT)",VIRGIN MEDIA BUSINESS,853083001/004/0120,1703.29
Department of Health,Leicestershire Partnership NHS Trust,30/01/20,Landline Telephone Rental / Calls,Warren Park Way 25 (PROPCO),VIRGIN MEDIA BUSINESS,853083001/004/0120,724.32
Department of Health,Leicestershire Partnership NHS Trust,30/01/20,Landline Telephone Rental / Calls,"Westcotes Group -Westcotes House (P78, LPT)",VIRGIN MEDIA BUSINESS,853083001/004/0120,3088.41
Department of Health,Leicestershire Partnership NHS Trust,30/01/20,Landline Telephone Rental / Calls,Westcotes Health Centre (CHP),VIRGIN MEDIA BUSINESS,853083001/004/0120,759.03
Department of Health,Leicestershire Partnership NHS Trust,30/01/20,Landline Telephone Rental / Calls,"Winstanley Drive Health Centre (P8, LPT)",VIRGIN MEDIA BUSINESS,853083001/004/0120,427.24
